[Event "*** Titled Tuesday Blitz"]
[Site "Chess.com"]
[Date "2020.04.21"]
[Round "3"]
[White "Muguet7"]
[Black "Gabrielian_Artur"]
[Result "0-1"]
[WhiteElo "2516"]
[BlackElo "2716"]
[TimeControl "180+1"]
[EndTime "10:31:06 PDT"]
[Termination "Gabrielian_Artur won on time"]

1. d4 {[%clk 0:03:00.1]} 1... Nf6 {[%clk 0:02:57.6]} 2. Nf3 {[%clk 0:02:59.9]}
2... e6 {[%clk 0:02:57.1]} 3. c4 {[%clk 0:02:58.6]} 3... Bb4+ {[%clk 0:02:56.5]}
4. Bd2 {[%clk 0:02:56.8]} 4... Qe7 {[%clk 0:02:56.5]} 5. Nc3 {[%clk 0:02:54.2]}
5... O-O {[%clk 0:02:50.5]} 6. e3 {[%clk 0:02:53]} 6... b6 {[%clk 0:02:48.2]} 7.
Bd3 {[%clk 0:02:52]} 7... Bb7 {[%clk 0:02:47.1]} 8. a3 {[%clk 0:02:48.9]} 8...
Bxc3 {[%clk 0:02:46.6]} 9. Bxc3 {[%clk 0:02:48.7]} 9... Ne4 {[%clk 0:02:38.9]}
10. Qc2 {[%clk 0:02:44.2]} 10... f5 {[%clk 0:02:38.5]} 11. b4 {[%clk 0:02:03.6]}
11... Nxc3 {[%clk 0:02:29.3]} 12. Qxc3 {[%clk 0:02:03.7]} 12... d6 {[%clk
0:02:24.6]} 13. Be2 {[%clk 0:02:00.1]} 13... Nd7 {[%clk 0:02:23.8]} 14. O-O
{[%clk 0:01:59]} 14... a5 {[%clk 0:02:10.8]} 15. Rfd1 {[%clk 0:01:56.5]} 15...
Rf6 {[%clk 0:01:56]} 16. d5 {[%clk 0:01:49.4]} 16... e5 {[%clk 0:01:54.7]} 17.
e4 {[%clk 0:01:35.2]} 17... f4 {[%clk 0:01:12.8]} 18. Nd2 {[%clk 0:01:26.9]}
18... Rff8 {[%clk 0:01:12.5]} 19. Bg4 {[%clk 0:01:22.7]} 19... Nf6 {[%clk
0:01:06.8]} 20. Be6+ {[%clk 0:01:22]} 20... Kh8 {[%clk 0:01:07]} 21. f3 {[%clk
0:01:10.7]} 21... Bc8 {[%clk 0:01:06]} 22. Bxc8 {[%clk 0:01:05.6]} 22... Rfxc8
{[%clk 0:01:05.4]} 23. Rdc1 {[%clk 0:01:01.9]} 23... g5 {[%clk 0:01:00.2]} 24.
c5 {[%clk 0:00:54.1]} 24... axb4 {[%clk 0:00:50.8]} 25. axb4 {[%clk 0:00:53]}
25... Rxa1 {[%clk 0:00:48.7]} 26. Qxa1 {[%clk 0:00:51.9]} 26... bxc5 {[%clk
0:00:47.7]} 27. bxc5 {[%clk 0:00:51.6]} 27... Rg8 {[%clk 0:00:41.3]} 28. h3
{[%clk 0:00:44.2]} 28... h5 {[%clk 0:00:38]} 29. cxd6 {[%clk 0:00:42.2]} 29...
cxd6 {[%clk 0:00:37.5]} 30. Qc3 {[%clk 0:00:22.3]} 30... Qa7+ {[%clk 0:00:32.5]}
31. Kf1 {[%clk 0:00:20.2]} 31... g4 {[%clk 0:00:27.1]} 32. hxg4 {[%clk
0:00:19.7]} 32... hxg4 {[%clk 0:00:27.1]} 33. Qc7 {[%clk 0:00:19.4]} 33... Qa6+
{[%clk 0:00:19]} 34. Qc4 {[%clk 0:00:19.1]} 34... Qb6 {[%clk 0:00:14.5]} 35. Qc6
{[%clk 0:00:18.1]} 35... Qd4 {[%clk 0:00:12.5]} 36. Qc3 {[%clk 0:00:15.9]} 36...
Qa7 {[%clk 0:00:10.8]} 37. Qc7 {[%clk 0:00:15.4]} 37... Qe3 {[%clk 0:00:10.5]}
38. Qc3 {[%clk 0:00:14.9]} 38... Qxc3 {[%clk 0:00:10.3]} 39. Rxc3 {[%clk
0:00:14.5]} 39... gxf3 {[%clk 0:00:10.4]} 40. gxf3 {[%clk 0:00:14.8]} 40... Ra8
{[%clk 0:00:10.3]} 41. Rc6 {[%clk 0:00:14.8]} 41... Ne8 {[%clk 0:00:09.4]} 42.
Nc4 {[%clk 0:00:14.7]} 42... Rd8 {[%clk 0:00:09.6]} 43. Ra6 {[%clk 0:00:13.3]}
43... Kg7 {[%clk 0:00:09.7]} 44. Na5 {[%clk 0:00:13.3]} 44... Kf7 {[%clk
0:00:08.6]} 45. Nc6 {[%clk 0:00:13.6]} 45... Rd7 {[%clk 0:00:08.4]} 46. Ra8
{[%clk 0:00:13.5]} 46... Nf6 {[%clk 0:00:08.7]} 47. Nd8+ {[%clk 0:00:12.1]}
47... Kg7 {[%clk 0:00:08]} 48. Ne6+ {[%clk 0:00:12.3]} 48... Kf7 {[%clk
0:00:08.4]} 49. Ng5+ {[%clk 0:00:11.2]} 49... Kg6 {[%clk 0:00:08.2]} 50. Ne6
{[%clk 0:00:11.3]} 50... Rb7 {[%clk 0:00:08.3]} 51. Ra2 {[%clk 0:00:07.9]} 51...
Rb3 {[%clk 0:00:07.8]} 52. Rg2+ {[%clk 0:00:07.9]} 52... Kf7 {[%clk 0:00:07.1]}
53. Rg7+ {[%clk 0:00:07.9]} 53... Ke8 {[%clk 0:00:07.5]} 54. Ke2 {[%clk
0:00:07.7]} 54... Re3+ {[%clk 0:00:06.4]} 55. Kf2 {[%clk 0:00:07.7]} 55... Ra3
{[%clk 0:00:07]} 56. Nc7+ {[%clk 0:00:07.2]} 56... Kf8 {[%clk 0:00:06.4]} 57.
Ne6+ {[%clk 0:00:07.2]} 57... Ke8 {[%clk 0:00:06.7]} 58. Nc7+ {[%clk 0:00:07.4]}
58... Kd8 {[%clk 0:00:07.1]} 59. Ne6+ {[%clk 0:00:07.3]} 59... Kc8 {[%clk
0:00:07.5]} 60. Rc7+ {[%clk 0:00:07.4]} 60... Kb8 {[%clk 0:00:07.1]} 61. Rf7
{[%clk 0:00:07]} 61... Nh5 {[%clk 0:00:07.1]} 62. Rd7 {[%clk 0:00:05.9]} 62...
Ra2+ {[%clk 0:00:07]} 63. Ke1 {[%clk 0:00:05.5]} 63... Ng3 {[%clk 0:00:07.2]}
64. Rxd6 {[%clk 0:00:04.9]} 64... Ra1+ {[%clk 0:00:06.5]} 65. Kd2 {[%clk
0:00:04.4]} 65... Ra2+ {[%clk 0:00:06.8]} 66. Kc3 {[%clk 0:00:04.5]} 66... Ra3+
{[%clk 0:00:07.2]} 67. Kd2 {[%clk 0:00:04.9]} 67... Rxf3 {[%clk 0:00:06.7]} 68.
Rb6+ {[%clk 0:00:05.8]} 68... Ka7 {[%clk 0:00:06.6]} 69. Rc6 {[%clk 0:00:06.1]}
69... Nxe4+ {[%clk 0:00:06.5]} 70. Ke2 {[%clk 0:00:05.7]} 70... Re3+ {[%clk
0:00:06.6]} 71. Kd1 {[%clk 0:00:05.8]} 71... f3 {[%clk 0:00:06.7]} 72. Rc2
{[%clk 0:00:05.5]} 72... f2 {[%clk 0:00:06.7]} 73. Ra2+ {[%clk 0:00:04.5]} 73...
Kb6 {[%clk 0:00:06.3]} 74. Rb2+ {[%clk 0:00:03.9]} 74... Ka5 {[%clk 0:00:06.4]}
75. Ra2+ {[%clk 0:00:04]} 75... Kb4 {[%clk 0:00:06.5]} 76. Rb2+ {[%clk
0:00:04.2]} 76... Ka3 {[%clk 0:00:06.8]} 77. Rxf2 {[%clk 0:00:03.2]} 77... Nxf2+
{[%clk 0:00:07]} 78. Kd2 {[%clk 0:00:03.6]} 78... Re4 {[%clk 0:00:05.7]} 79. d6
{[%clk 0:00:03.3]} 79... Rh4 {[%clk 0:00:02]} 80. d7 {[%clk 0:00:03.5]} 80...
Ne4+ {[%clk 0:00:02.9]} 81. Ke3 {[%clk 0:00:02.7]} 81... Rh8 {[%clk 0:00:02.3]}
0-1

[Event "*** Titled Tuesday Blitz"]
[Site "Chess.com"]
[Date "2020.04.21"]
[Round "3"]
[White "youngKID"]
[Black "johnathan113"]
[Result "1-0"]
[WhiteElo "2801"]
[BlackElo "2616"]
[TimeControl "180+1"]
[EndTime "10:31:11 PDT"]
[Termination "youngKID won on time"]

1. e4 {[%clk 0:03:00.9]} 1... c5 {[%clk 0:02:55.3]} 2. Nf3 {[%clk 0:02:59.2]}
2... g6 {[%clk 0:02:55.3]} 3. h4 {[%clk 0:02:57.9]} 3... h6 {[%clk 0:02:54]} 4.
d4 {[%clk 0:02:57.8]} 4... cxd4 {[%clk 0:02:54.3]} 5. Qxd4 {[%clk 0:02:57.9]}
5... Nf6 {[%clk 0:02:54.5]} 6. e5 {[%clk 0:02:56.3]} 6... Nc6 {[%clk 0:02:54.8]}
7. Qa4 {[%clk 0:02:56.6]} 7... Nd5 {[%clk 0:02:54.4]} 8. Qe4 {[%clk 0:02:57.2]}
8... Nb6 {[%clk 0:02:51.6]} 9. h5 {[%clk 0:02:55.7]} 9... d5 {[%clk 0:02:48.2]}
10. Qe2 {[%clk 0:02:38.5]} 10... g5 {[%clk 0:02:45]} 11. Nc3 {[%clk 0:02:23]}
11... Bg7 {[%clk 0:02:44.8]} 12. Be3 {[%clk 0:02:02.8]} 12... g4 {[%clk
0:02:44.6]} 13. Nd4 {[%clk 0:01:59.1]} 13... Nxe5 {[%clk 0:02:20.7]} 14. O-O-O
{[%clk 0:01:51.2]} 14... Nec4 {[%clk 0:02:13.5]} 15. Ndb5 {[%clk 0:01:16.1]}
15... Nxe3 {[%clk 0:01:47.5]} 16. Qxe3 {[%clk 0:01:17]} 16... O-O {[%clk
0:01:33.1]} 17. Bd3 {[%clk 0:01:07]} 17... e5 {[%clk 0:01:27.7]} 18. Qg3 {[%clk
0:00:24.2]} 18... a6 {[%clk 0:01:19.2]} 19. Na3 {[%clk 0:00:15.4]} 19... e4
{[%clk 0:01:15.7]} 20. Be2 {[%clk 0:00:15.4]} 20... Qg5+ {[%clk 0:01:10.3]} 21.
Qe3 {[%clk 0:00:15.5]} 21... Qxe3+ {[%clk 0:01:00.2]} 22. fxe3 {[%clk
0:00:16.4]} 22... Be6 {[%clk 0:00:59.7]} 23. Nab1 {[%clk 0:00:16.2]} 23... Rac8
{[%clk 0:00:58.7]} 24. Rhf1 {[%clk 0:00:15.9]} 24... f5 {[%clk 0:00:58.8]} 25.
a4 {[%clk 0:00:12.9]} 25... Rfd8 {[%clk 0:00:53.9]} 26. a5 {[%clk 0:00:12.1]}
26... Nc4 {[%clk 0:00:53.3]} 27. Bxc4 {[%clk 0:00:10.2]} 27... Rxc4 {[%clk
0:00:54.2]} 28. Ne2 {[%clk 0:00:09.6]} 28... Be5 {[%clk 0:00:46.7]} 29. Nd2
{[%clk 0:00:04.6]} 29... Rc7 {[%clk 0:00:39.5]} 30. Nb3 {[%clk 0:00:05.1]} 30...
Rf7 {[%clk 0:00:27.4]} 31. Nbd4 {[%clk 0:00:03.8]} 31... Bc8 {[%clk 0:00:28.1]}
32. Nf4 {[%clk 0:00:04]} 32... Rd6 {[%clk 0:00:17.2]} 33. g3 {[%clk 0:00:03.8]}
33... Kg7 {[%clk 0:00:15.7]} 34. Rd2 {[%clk 0:00:04]} 34... Bd7 {[%clk 0:00:12]}
35. Rfd1 {[%clk 0:00:02.4]} 35... Bxf4 {[%clk 0:00:12.1]} 36. exf4 {[%clk
0:00:02.9]} 36... Bc6 {[%clk 0:00:10.4]} 37. c3 {[%clk 0:00:03.1]} 37... Kf6
{[%clk 0:00:10.1]} 38. Rc2 {[%clk 0:00:02.4]} 38... Rc7 {[%clk 0:00:10.4]} 39.
Kd2 {[%clk 0:00:02.6]} 39... Ba4 {[%clk 0:00:10.2]} 40. b3 {[%clk 0:00:03.1]}
40... Bd7 {[%clk 0:00:10.3]} 41. Ke3 {[%clk 0:00:03.6]} 41... Rc5 {[%clk
0:00:08.5]} 42. b4 {[%clk 0:00:03.3]} 42... Rc4 {[%clk 0:00:09]} 43. Rdc1 {[%clk
0:00:03.1]} 43... Ba4 {[%clk 0:00:08.2]} 44. Ra2 {[%clk 0:00:03.3]} 44... Be8
{[%clk 0:00:09]} 45. Rac2 {[%clk 0:00:03.5]} 45... Rd8 {[%clk 0:00:09.5]} 46.
Rb2 {[%clk 0:00:03.4]} 46... Rdc8 {[%clk 0:00:10.1]} 47. Rb3 {[%clk 0:00:03.7]}
47... Ba4 {[%clk 0:00:07.8]} 48. Ra3 {[%clk 0:00:04]} 48... Be8 {[%clk
0:00:08.7]} 49. Kd2 {[%clk 0:00:03.8]} 49... Bf7 {[%clk 0:00:04.3]} 50. Rh1
{[%clk 0:00:03.9]} 50... R8c7 {[%clk 0:00:04.2]} 51. Rh2 {[%clk 0:00:03.6]}
51... Rxd4+ {[%clk 0:00:04.4]} 52. cxd4 {[%clk 0:00:03.5]} 52... Rc4 {[%clk
0:00:05.3]} 53. Ke3 {[%clk 0:00:04]} 53... Rxb4 {[%clk 0:00:05.7]} 54. Rc2
{[%clk 0:00:04.7]} 54... Bxh5 {[%clk 0:00:05.1]} 55. Rc8 {[%clk 0:00:04.8]}
55... Bf7 {[%clk 0:00:05.3]} 56. Rac3 {[%clk 0:00:05.1]} 56... h5 {[%clk
0:00:05.1]} 57. R3c7 {[%clk 0:00:04.7]} 57... Kg6 {[%clk 0:00:02.9]} 58. Rf8
{[%clk 0:00:04.5]} 58... Be6 {[%clk 0:00:03.4]} 59. Re8 {[%clk 0:00:05]} 59...
Bf7 {[%clk 0:00:03]} 60. Ree7 {[%clk 0:00:05.5]} 60... Rb3+ {[%clk 0:00:03.3]}
61. Ke2 {[%clk 0:00:06]} 61... Rb2+ {[%clk 0:00:03.7]} 62. Ke1 {[%clk
0:00:06.5]} 62... h4 {[%clk 0:00:03.5]} 63. gxh4 {[%clk 0:00:05.8]} 63... g3
{[%clk 0:00:04.4]} 64. Rxf7 {[%clk 0:00:06.2]} 64... g2 {[%clk 0:00:03.9]} 65.
Rg7+ {[%clk 0:00:06]} 65... Kh5 {[%clk 0:00:03.7]} 66. Rg5+ {[%clk 0:00:06.5]}
66... Kh6 {[%clk 0:00:04.3]} 67. Rcg7 {[%clk 0:00:04.6]} 67... e3 {[%clk
0:00:03.2]} 68. R7g6+ {[%clk 0:00:03.7]} 68... Kh7 {[%clk 0:00:03.7]} 69. Rg7+
{[%clk 0:00:04.6]} 69... Kh6 {[%clk 0:00:04.4]} 70. Rxg2 {[%clk 0:00:05.5]}
70... Rb5 {[%clk 0:00:02.6]} 71. R7g6+ {[%clk 0:00:05.4]} 71... Kh5 {[%clk
0:00:03]} 72. Rg8 {[%clk 0:00:06.3]} 72... Rb1+ {[%clk 0:00:02.3]} 73. Ke2
{[%clk 0:00:06.5]} 73... Rb2+ {[%clk 0:00:02.5]} 74. Kf3 {[%clk 0:00:06.9]}
74... Rf2+ {[%clk 0:00:02.4]} 75. Rxf2 {[%clk 0:00:06.6]} 75... exf2 {[%clk
0:00:03.3]} 76. Kxf2 {[%clk 0:00:07.2]} 1-0

[Event "*** Titled Tuesday Blitz"]
[Site "Chess.com"]
[Date "2020.04.21"]
[Round "3"]
[White "Korchmar_Vasiliy"]
[Black "WeAintSurePal"]
[Result "1-0"]
[WhiteElo "2582"]
[BlackElo "2358"]
[TimeControl "180+1"]
[EndTime "10:31:23 PDT"]
[Termination "Korchmar_Vasiliy won by resignation"]

1. d4 {[%clk 0:03:00.9]} 1... d5 {[%clk 0:02:58.9]} 2. Nf3 {[%clk 0:03:01.4]}
2... Nf6 {[%clk 0:02:58]} 3. Bf4 {[%clk 0:03:02]} 3... e6 {[%clk 0:02:53.8]} 4.
e3 {[%clk 0:03:02.2]} 4... Bd6 {[%clk 0:02:54.3]} 5. Bg3 {[%clk 0:03:02.5]} 5...
c5 {[%clk 0:02:49.6]} 6. Nbd2 {[%clk 0:03:02.5]} 6... O-O {[%clk 0:02:47.6]} 7.
c3 {[%clk 0:03:02.6]} 7... Qc7 {[%clk 0:02:47.6]} 8. Ne5 {[%clk 0:02:57.3]} 8...
b6 {[%clk 0:02:44.8]} 9. f4 {[%clk 0:02:53.6]} 9... Nbd7 {[%clk 0:02:40.1]} 10.
Bd3 {[%clk 0:02:53.1]} 10... Bb7 {[%clk 0:02:36.9]} 11. Qf3 {[%clk 0:02:51.2]}
11... a5 {[%clk 0:02:16.3]} 12. Bh4 {[%clk 0:02:49.6]} 12... Be7 {[%clk
0:02:05.7]} 13. a4 {[%clk 0:02:47.9]} 13... Rfd8 {[%clk 0:01:57.2]} 14. O-O
{[%clk 0:02:47.7]} 14... Ba6 {[%clk 0:01:57]} 15. Bxa6 {[%clk 0:02:46.2]} 15...
Rxa6 {[%clk 0:01:57.9]} 16. Qe2 {[%clk 0:02:39.7]} 16... Raa8 {[%clk 0:01:57.4]}
17. Qb5 {[%clk 0:02:40.1]} 17... Rac8 {[%clk 0:01:53.2]} 18. Ndf3 {[%clk
0:02:32.2]} 18... h6 {[%clk 0:01:45]} 19. Nd2 {[%clk 0:02:31.8]} 19... c4 {[%clk
0:01:27.4]} 20. e4 {[%clk 0:02:18.4]} 20... Nxe5 {[%clk 0:01:21.4]} 21. Bxf6
{[%clk 0:02:13.1]} 21... Nc6 {[%clk 0:00:47.2]} 22. Bxe7 {[%clk 0:02:13.4]}
22... Nxe7 {[%clk 0:00:46.7]} 23. f5 {[%clk 0:02:08.2]} 23... dxe4 {[%clk
0:00:43.9]} 24. fxe6 {[%clk 0:02:01.8]} 24... f5 {[%clk 0:00:43.7]} 25. Rxf5
{[%clk 0:01:58.4]} 25... Nxf5 {[%clk 0:00:41.9]} 26. Qxf5 {[%clk 0:01:59.3]}
26... e3 {[%clk 0:00:40.8]} 27. Nf3 {[%clk 0:01:56.5]} 27... Rf8 {[%clk
0:00:40.1]} 28. Qe4 {[%clk 0:01:57.1]} 28... Rce8 {[%clk 0:00:35]} 29. Qxe3
{[%clk 0:01:53.1]} 29... Qd6 {[%clk 0:00:35]} 30. Re1 {[%clk 0:01:48.9]} 30...
Rf6 {[%clk 0:00:34.1]} 31. e7 {[%clk 0:01:01.8]} 31... Rf7 {[%clk 0:00:32.1]}
32. Qe6 {[%clk 0:00:58]} 32... Qxe6 {[%clk 0:00:18]} 33. Rxe6 {[%clk 0:00:58.9]}
33... Rexe7 {[%clk 0:00:18.4]} 34. Rxb6 {[%clk 0:00:59.3]} 34... Rb7 {[%clk
0:00:18.5]} 35. Rc6 {[%clk 0:00:48.7]} 35... Rxb2 {[%clk 0:00:18.3]} 36. Rxc4
{[%clk 0:00:48.2]} 36... Ra2 {[%clk 0:00:17.3]} 37. h4 {[%clk 0:00:38.6]} 37...
Rb7 {[%clk 0:00:16.7]} 38. d5 {[%clk 0:00:32]} 38... Rb1+ {[%clk 0:00:14.9]} 39.
Kh2 {[%clk 0:00:31.6]} 39... Rbb2 {[%clk 0:00:15.8]} 40. Rg4 {[%clk 0:00:31.4]}
40... Kf7 {[%clk 0:00:15.7]} 41. Ne5+ {[%clk 0:00:17.6]} 41... Kf6 {[%clk
0:00:16]} 42. Nc4 {[%clk 0:00:14.3]} 42... Kf5 {[%clk 0:00:12.2]} 43. Rxg7
{[%clk 0:00:11.6]} 43... Re2 {[%clk 0:00:11.9]} 44. Nxa5 {[%clk 0:00:08.3]}
44... Rxa4 {[%clk 0:00:11.3]} 45. Nc6 {[%clk 0:00:07.9]} 45... Rxh4+ {[%clk
0:00:11.9]} 46. Kg3 {[%clk 0:00:08.4]} 46... Rc4 {[%clk 0:00:12]} 47. Nd4+
{[%clk 0:00:08.6]} 47... Rxd4 {[%clk 0:00:11.7]} 48. cxd4 {[%clk 0:00:09.5]}
48... Rd2 {[%clk 0:00:11.3]} 49. Rf7+ {[%clk 0:00:07.1]} 49... Kg6 {[%clk
0:00:10.5]} 50. Rf4 {[%clk 0:00:07.3]} 50... Kg5 {[%clk 0:00:10.8]} 51. Rg4+
{[%clk 0:00:06.2]} 51... Kf5 {[%clk 0:00:10.7]} 52. Rf4+ {[%clk 0:00:06.7]}
52... Kg5 {[%clk 0:00:10.5]} 53. Re4 {[%clk 0:00:06.3]} 53... Rd3+ {[%clk
0:00:10.6]} 54. Kf2 {[%clk 0:00:06.8]} 54... Kf5 {[%clk 0:00:10.9]} 55. Rh4
{[%clk 0:00:07.2]} 55... Kg5 {[%clk 0:00:11.2]} 56. Re4 {[%clk 0:00:07.4]} 56...
Kf5 {[%clk 0:00:11.2]} 57. Re5+ {[%clk 0:00:07.8]} 57... Kf6 {[%clk 0:00:11.3]}
58. Re6+ {[%clk 0:00:07.5]} 58... Kf5 {[%clk 0:00:11.5]} 59. Rxh6 {[%clk
0:00:07.3]} 59... Rxd4 {[%clk 0:00:11.8]} 60. d6 {[%clk 0:00:03.7]} 60... Kg5
{[%clk 0:00:12]} 61. Re6 {[%clk 0:00:03.7]} 61... Kf5 {[%clk 0:00:12.1]} 62. Re8
{[%clk 0:00:02.2]} 62... Rxd6 {[%clk 0:00:11.8]} 63. Rg8 {[%clk 0:00:02.8]}
63... Rd2+ {[%clk 0:00:10.7]} 64. Kg3 {[%clk 0:00:03.1]} 64... Rd3+ {[%clk
0:00:11.1]} 65. Kh2 {[%clk 0:00:03.2]} 65... Rd2 {[%clk 0:00:11.4]} 66. Kh3
{[%clk 0:00:03.4]} 66... Rd4 {[%clk 0:00:11.8]} 67. g4+ {[%clk 0:00:03.4]} 67...
Kf6 {[%clk 0:00:12.3]} 68. Rf8+ {[%clk 0:00:03.8]} 68... Kg7 {[%clk 0:00:12.6]}
69. Ra8 {[%clk 0:00:04.7]} 69... Rd3+ {[%clk 0:00:12.8]} 70. Kh4 {[%clk
0:00:05.1]} 70... Rd1 {[%clk 0:00:13.2]} 71. Ra7+ {[%clk 0:00:05.5]} 71... Kg6
{[%clk 0:00:13.5]} 72. Ra6+ {[%clk 0:00:05.7]} 72... Kg7 {[%clk 0:00:13.9]} 73.
Ra5 {[%clk 0:00:06.6]} 73... Rh1+ {[%clk 0:00:13.6]} 74. Kg5 {[%clk 0:00:07]}
74... Rd1 {[%clk 0:00:14.4]} 75. Ra7+ {[%clk 0:00:07.2]} 75... Kg8 {[%clk
0:00:14.8]} 76. Kh6 {[%clk 0:00:07.5]} 76... Rd6+ {[%clk 0:00:15]} 77. Kh5
{[%clk 0:00:07.5]} 77... Rd1 {[%clk 0:00:15.5]} 78. g5 {[%clk 0:00:07.7]} 78...
Rd6 {[%clk 0:00:14.3]} 79. Rb7 {[%clk 0:00:07.4]} 79... Rd1 {[%clk 0:00:13.7]}
80. Kh6 {[%clk 0:00:06.9]} 80... Rh1+ {[%clk 0:00:13.1]} 81. Kg6 {[%clk
0:00:07.1]} 81... Kf8 {[%clk 0:00:14]} 82. Rb8+ {[%clk 0:00:06.5]} 82... Ke7
{[%clk 0:00:14.4]} 83. Kg7 {[%clk 0:00:06.7]} 83... Rf1 {[%clk 0:00:14.5]} 84.
g6 {[%clk 0:00:06.8]} 84... Rg1 {[%clk 0:00:14.7]} 85. Rb4 {[%clk 0:00:06.1]}
85... Rh1 {[%clk 0:00:14.1]} 86. Re4+ {[%clk 0:00:05.9]} 86... Kd7 {[%clk
0:00:13.4]} 87. Kg8 {[%clk 0:00:05.5]} 87... Rf1 {[%clk 0:00:12.5]} 88. g7
{[%clk 0:00:05.6]} 88... Rh1 {[%clk 0:00:12]} 89. Kf7 {[%clk 0:00:03.7]} 89...
Rf1+ {[%clk 0:00:11.7]} 90. Kg6 {[%clk 0:00:04]} 90... Rg1+ {[%clk 0:00:11.5]}
91. Kf6 {[%clk 0:00:04.4]} 91... Rf1+ {[%clk 0:00:11.3]} 92. Kg5 {[%clk
0:00:04.6]} 92... Rf7 {[%clk 0:00:11.8]} 93. g8=Q {[%clk 0:00:04]} 93... Re7
{[%clk 0:00:12.2]} 94. Rxe7+ {[%clk 0:00:03.5]} 94... Kxe7 {[%clk 0:00:13.1]}
95. Kf5 {[%clk 0:00:03.9]} 95... Kd6 {[%clk 0:00:13.5]} 96. Qc4 {[%clk
0:00:04.2]} 1-0